fUSD/lending_fUSD_20240728
["ID","MTS","AMOUNT","RATE_DAILY","PERIOD"]
[333494077,1722201717808,21.78045515,9.302e-05,2]
[333494130,1722202240480,-4318.15470095,6.94e-05,2]
[333494131,1722202240492,-179.03223108,9.302e-05,2]
[333494132,1722202240502,-291.58113767,9.302e-05,2]
[333494133,1722202240513,-1632.6662692,9.302e-05,2]
[333494134,1722202240523,-155.50533946,9.302e-05,2]
[333494135,1722202240534,-198.8,9.725e-05,2]
[333494136,1722202240544,-1353.01,9.871e-05,2]
[333494137,1722202240555,-154.16610012,9.888e-05,2]
[333494138,1722202240566,-9689.8931,9.963e-05,2]
[333494139,1722202240577,-250.0,9.994e-05,2]
[333494140,1722202240587,-4682.4950521,0.0001,2]
[333494141,1722202240599,-6431.94610793,0.0001,2]
[333494142,1722202240611,-1250.0,0.0001,2]
[333494143,1722202240622,-640.0,0.00010063,2]
[333494144,1722202240633,-360.0,0.00010073,2]
[333494145,1722202240643,-2161.5706135,0.00010421,2]
[333494146,1722202240655,-57817.63770102,0.0001088,2]
[333494147,1722202240665,-7666.6504,0.000109,2]
[333494148,1722202240676,-1000.0,0.000109,2]
[333494149,1722202240686,-492.003,0.000109,2]
[333494150,1722202240696,-170.59489617,0.000109,2]
[333494151,1722202240707,-338.7468,0.000109,2]
[333494152,1722202240719,-159.00411161,0.000109,2]
[333494153,1722202240729,-384.27371677,0.00010999,2]
[333494154,1722202240740,-2999.999999,0.00010999,2]
[333494155,1722202240750,-75613.32246312,0.00011,2]
[333494156,1722202240763,-2126.47474908,0.00011,2]
[333494176,1722202243493,-404.34576589,8.512e-05,2]
[333494177,1722202243555,-113.03423411,8.512e-05,2]
[333494178,1722202243567,-256.08846797,0.00011,2]
[333494179,1722202243615,-267.46017037,0.00011,2]
[333494180,1722202243627,-6743.53679999,0.00011,2]
[333494181,1722202243637,-1114.98776206,0.00011,2]
[333494182,1722202243649,-304.13414915,0.00011,2]
[333494183,1722202243688,-517.38,0.00010776,2]
[333494184,1722202243699,-616.93999994,0.00011,2]
[333494185,1722202243711,-912.45,0.00011,2]
[333494186,1722202243729,-567.63859501,0.00011,2]
[333494187,1722202243755,-656.86101804,0.00011,2]
[333494188,1722202243878,-32933.87196871,0.00011,2]
[333494190,1722202246334,-740.40033588,0.00011,2]
[333494191,1722202246345,-681.29,0.00011,2]
[333494192,1722202246398,-371.88291753,0.00011,2]
[333494193,1722202246409,-1324.8,0.00011,2]
[333494194,1722202246421,-623.04947874,0.00011,2]
[333494195,1722202246432,-1919.57705919,0.00011,2]
[333494196,1722202246448,-418.84953567,0.00011,2]
[333494197,1722202246471,-611.967,0.00011,2]
[333494198,1722202246483,-544.4382752,0.00011,2]
[333494199,1722202246495,-735.203059,0.00011,2]
[333494200,1722202246507,-321.8,0.00011,2]
[333494201,1722202246535,-310.531547,0.00011,2]
[333494202,1722202246546,-476.67681935,0.00011,2]
[333494203,1722202246657,-445.68818664,0.00011,2]
[333494204,1722202246671,-453.46218221,0.00011,2]
[333494205,1722202246683,-467.75125298,0.00011,2]
[333494206,1722202246723,-6998.15771474,0.00011,2]
[333494207,1722202246736,-344.849717,0.00011,2]
[333494211,1722202247414,-387.7317709,0.00011,2]
[333494213,1722203043232,5100.0,0.00015,30]
[333494300,1722203438438,-505.53,8.219e-05,2]
[333494301,1722203438449,-250.0,9.241e-05,2]
[333494302,1722203438460,-19666.89,9.257e-05,2]
[333494303,1722203438469,-500.0,9.269e-05,2]
[333494304,1722203438479,-672.4,9.286e-05,2]
[333494305,1722203438488,-200.0,9.332e-05,2]
[333494306,1722203438497,-284.4,9.365e-05,2]
[333494307,1722203438508,-2169.32,9.372e-05,2]
[333494308,1722203438517,-1368.43,9.465e-05,2]
[333494309,1722203438529,-1000.0,9.487e-05,2]
[333494310,1722203438538,-2319.76,9.67e-05,2]
[333494311,1722203438548,-153.7,9.816e-05,2]
[333494312,1722203438557,-165.21,9.84e-05,2]
[333494313,1722203438567,-165.21,9.864e-05,2]
[333494314,1722203438576,-165.21,9.889e-05,2]
[333494315,1722203438585,-286.46,0.00010258,2]
[333494316,1722203438594,-150.0,0.00010278,2]
[333494317,1722203438604,-505.53,0.00010439,2]
[333494318,1722203438614,-150.0,0.00010448,2]
[333494319,1722203438624,-352.625,0.00010448,2]
[333494320,1722203438634,-1000.0,0.00010673,2]
[333494321,1722203438643,-7868.25661815,0.00010673,2]
[333494322,1722203438655,-2856.46410948,0.00010673,2]
[333494323,1722203438668,-1109.20886868,0.00010673,2]
[333494324,1722203438685,-60084.68526684,0.00010673,2]
[333494325,1722203438698,-362.95395797,0.00010673,2]
[333494326,1722203438711,-591.4607645,0.00010673,2]
[333494327,1722203439243,-1854.33277519,0.00010673,2]
[333494329,1722203439368,-861.60115581,0.00010673,2]
[333494344,1722203440351,-17965.72626211,0.00010673,2]
[333494345,1722203440363,-303.27304,0.00010673,2]
[333494346,1722203440461,-886.05188537,0.00010673,2]
[333494347,1722203440472,-3017.256,0.00010673,2]
[333494348,1722203440485,-2880.424834,0.00010673,2]
[333494349,1722203440497,-10770.3044619,0.00010673,2]
[333494350,1722203440506,-259.519,0.00010681,2]
[333494351,1722203440516,-1828.0,0.000108,5]
[333494352,1722203440529,-158.08417684,0.00010899,2]
[333494353,1722203440538,-158.0841768,0.00010899,2]
[333494354,1722203440548,-158.0841768,0.00010899,2]
[333494355,1722203440556,-158.0841768,0.00010899,2]
[333494356,1722203440567,-158.0841768,0.00010899,2]
[333494357,1722203440578,-158.0841768,0.00010899,2]
[333494358,1722203440587,-761.8685,0.000109,2]
[333494359,1722203440597,-3969.9594,0.000109,2]
[333494360,1722203440607,-12864.42140163,0.000109,2]
[333494361,1722203440658,-362.572002,0.000109,2]
[333494362,1722203440673,-1641.30252,0.000109,2]
[333494363,1722203440685,-9683.20637637,0.000109,2]
[333494364,1722203440696,-254.84919617,0.000109,2]
[333494365,1722203440706,-25964.64088451,0.000109,2]
[333494366,1722203440718,-579.96474293,0.000109,2]
[333494367,1722203440730,-3602.185,0.000109,2]
[333494495,1722203443587,-30539.26217256,0.000109,2]
[333494496,1722203443599,-6330.0609,0.000109,2]
[333494497,1722203443612,-162.30891772,0.000109,2]
[333494498,1722203443624,-500.0,0.000109,2]
[333494499,1722203443636,-8133.89202192,0.000109,2]
[333494500,1722203443657,-1866.10797808,0.000109,2]
[333494501,1722203443668,-158.0841768,0.000109,2]
[333494502,1722203443678,-166.7541308,0.000109,2]
[333494503,1722203443688,-524.50618302,0.000109,2]
[333494504,1722203443698,-508.12120974,0.00010958,2]
[333494505,1722203443709,-500.0,0.00010958,2]
[333494507,1722203443722,-500.0,0.00010958,2]
[333494509,1722203443733,-500.0,0.00010958,2]
[333494511,1722203443745,-1000.0,0.0001097,2]
[333494514,1722203443757,-500.0,0.0001097,2]
[333494516,1722203443767,-810.0,0.00010998,2]
[333494518,1722203443777,-445.0,0.00010998,2]
[333494520,1722203443787,-150.0,0.00010998,2]
[333494522,1722203443799,-450.0,0.00010998,2]
[333494524,1722203443811,-550.0,0.00010998,2]
[333494526,1722203443821,-2383.0,0.00010998,2]
[333494528,1722203443832,-321.041,0.00010998,2]
[333494531,1722203443844,-2930.81384356,0.00010998,2]
[333494533,1722203443859,-353.18615644,0.00010998,2]
[333494536,1722203443869,-150.0,0.00010998,2]
[333494538,1722203443879,-1898.156,0.00010998,2]
[333494540,1722203443890,-866.25784378,0.00010998,2]
[333494542,1722203443903,-4809.74215622,0.00010998,2]
[333494544,1722203443913,-10228.76836878,0.00010998,2]
[333494667,1722203446394,-27131.84363122,0.00010998,2]
[333494668,1722203446405,-545.321,0.00010998,2]
[333494669,1722203446416,-1123.42877866,0.00010999,3]
[333494670,1722203446427,-500.0,0.00010999,2]
[333494671,1722203446437,-437.478137,0.00010999,2]
[333494672,1722203446448,-227.79661138,0.00010999,2]
[333494673,1722203446459,-500.0,0.00010999,2]
[333494674,1722203446470,-500.0,0.00010999,2]
[333494675,1722203446481,-164.89788441,0.00010999,2]
[333494676,1722203446492,-237.24495774,0.00010999,2]
[333494677,1722203446502,-500.0,0.00010999,2]
[333494678,1722203446513,-501.02052596,0.00010999,2]
[333494679,1722203446523,-568.88670911,0.00010999,2]
[333494680,1722203446538,-500.0,0.00010999,2]
[333494681,1722203446548,-502.10305254,0.00010999,2]
[333494682,1722203446559,-500.0,0.00010999,2]
[333494683,1722203446570,-500.0,0.00010999,2]
[333494684,1722203446580,-287.39241953,0.00010999,2]
[333494685,1722203446591,-500.0,0.00010999,2]
[333494686,1722203446602,-500.0,0.00010999,2]
[333494687,1722203446612,-409.03662472,0.00010999,2]
[333494688,1722203446624,-299.66863784,0.00010999,2]
[333494689,1722203446635,-500.0,0.00010999,2]
[333494690,1722203446645,-183.58811323,0.00010999,2]
[333494691,1722203446655,-500.0,0.00010999,2]
[333494692,1722203446666,-250.63299672,0.00010999,2]
[333494693,1722203446677,-467.69289574,0.00010999,2]
[333494694,1722203446688,-198639.00207325,0.00011,2]
[333494695,1722203446700,-183424.82725621,0.00011,2]
[333494696,1722203446720,-896.1847932,0.00011,2]
[333494697,1722203446732,-5114.97780404,0.00011,2]
[333494698,1722203446745,-6256.73050416,0.00011,2]
[333494722,1722203447457,-1301.33763081,0.00011,2]
[333494794,1722204631552,-173.15774171,8.219e-05,2]
[333494796,1722204631562,-492.07,8.219e-05,2]
[333494798,1722204631571,-640.33202254,8.219e-05,2]
[333494800,1722204631580,-1307.94234276,9.344e-05,2]
[333494801,1722204631592,-192.05765724,9.344e-05,2]
[333494802,1722204631601,-423.71286276,9.897e-05,2]
[333494803,1722204631612,-496.77,9.897e-05,2]
[333494804,1722204631623,-162.20713724,9.897e-05,2]
[333494805,1722204631632,-250.0,9.897e-05,2]
[333494806,1722204631641,-1.26609184,9.946e-05,2]
[333494807,1722204631653,-152.43390816,9.946e-05,2]
[333494808,1722204631662,-369.00940402,0.0001,2]
[333494809,1722204631673,-880.99059598,0.0001,2]
[333494810,1722204631684,-600.0,0.00010005,2]
[333494811,1722204631694,-98.81900757,0.00010032,2]
[333494812,1722204631705,-301.18099243,0.00010032,2]
[333494813,1722204631715,-150.0,0.0001034,2]
[333494814,1722204631724,-834.0,0.00010341,2]
[333494815,1722204631734,-420.34,0.00010341,2]
[333494816,1722204631743,-834.0,0.00010341,2]
[333494817,1722204631753,-420.34,0.00010341,2]
[333494818,1722204631762,-834.0,0.00010341,2]
[333494819,1722204631771,-834.0,0.00010341,2]
[333494820,1722204631781,-420.34,0.00010341,2]
[333494821,1722204631790,-832.95,0.00010341,2]
[333494822,1722204631800,-420.34,0.00010341,2]
[333494823,1722204631809,-420.34,0.00010341,2]
[333494824,1722204631819,-489.72,0.00010341,2]
[333494825,1722204631829,-492.07,0.00010478,2]
[333494826,1722204631838,-166.87,0.00010478,2]
[333494827,1722204631847,-150.75,0.000105,2]
[333494828,1722204631856,-499.99,0.000105,2]
[333494829,1722204631866,-249.08058497,0.00010578,2]
[333494830,1722204631877,-462.11941503,0.00010578,2]
[333494831,1722204631887,-1496.56344227,0.00010607,2]
[333494832,1722204631897,-600.0,0.000107,2]
[333494833,1722204631907,-56406.1043,0.000108,2]
[333494834,1722204631916,-473.7199967,0.000108,2]
[333494835,1722204631925,-500.0,0.000108,2]
[333494836,1722204631935,-1143.5919,0.000108,2]
[333494837,1722204631944,-941.0779,0.000108,2]
[333494838,1722204631956,-27810.8275,0.000108,2]
[333494839,1722204631967,-6863.1678,0.000109,2]
[333494840,1722204631976,-169.84462218,0.000109,2]
[333494841,1722204631986,-1467.789,0.000109,2]
[333494842,1722204631996,-215.08383658,0.000109,2]
[333494843,1722204632005,-100000.0,0.000109,2]
[333494844,1722204632015,-920.32059951,0.000109,2]
[333494845,1722204632024,-920.32059951,0.000109,2]
[333494846,1722204632035,-497.4113957,0.000109,2]
[333494847,1722204632045,-2412.23156032,0.000109,2]
[333494848,1722204632054,-1638.90014625,0.00010997,2]
[333494849,1722204632064,-621.0,0.00010998,2]
[333494850,1722204632073,-1000.0,0.00010999,2]
[333494851,1722204632083,-150.0,0.00010999,2]
[333494852,1722204632093,-294.89954074,0.00010999,2]
[333494853,1722204632102,-1000.0,0.00011,3]
[333494854,1722204632112,-641569.1765626,0.00011,2]
[333494855,1722204632121,-194294.44333094,0.00011,2]
[333494856,1722204632132,-5089.15586786,0.00011,2]
[333494857,1722204632143,-525.7141499,0.00011,2]
[333494858,1722204632155,-991.38567962,0.00011,2]
[333494859,1722204632166,-4982.1901667,0.00011,2]
[333494860,1722204632182,-777.495996,0.00011,2]
[333494861,1722204632194,-451.63886766,0.00011,2]
[333494862,1722204632205,-2711.21593519,0.00011,2]
[333494863,1722204632220,-1528.35103245,0.00011,2]
[333494864,1722204632232,-1207.67480483,0.00011,2]
[333494865,1722204632243,-215809.91223655,0.00011,2]
[333494866,1722204632254,-2470.24297497,0.00011,2]
[333494867,1722204632265,-287.37338502,0.00011,2]
[333494883,1722204637515,-1074.0,0.00010998,2]
[333494886,1722204637525,-206.42967852,0.00010999,2]
[333494888,1722204637534,-17857.46931767,0.00011,2]
[333494889,1722204637561,-916.92440523,0.00011,2]
[333494891,1722204637572,-361.76532043,0.00011,2]
[333494893,1722204637583,-726.98308035,0.00011,2]
[333494895,1722204637594,-442.25,0.00011,2]
[333494897,1722204637605,-3107.05121477,0.00011,2]
[333494899,1722204637617,-5213.2416444,0.00011,2]
[333494901,1722204637629,-10057.58,0.00011,2]
[333494903,1722204637640,-3861.57904239,0.00011,2]
[333494905,1722204637651,-762.15086728,0.00011,2]
[333494907,1722204637663,-6426.30375168,0.00011,2]
[333494910,1722204637674,-307.07755376,0.00011,2]
[333494913,1722204637696,-16175.0,0.00011,2]
[333494915,1722204637707,-70674.09265951,0.00011,2]
[333494917,1722204637718,-1041.06219095,0.00011,2]
[333494919,1722204637729,-1631.36205756,0.00011,2]
[333494922,1722204637752,-1167.56978197,0.00011,2]
[333494958,1722204637999,-5139.54579721,0.00011,2]
[333494961,1722204638019,-827.72049781,0.00011,2]
[333494962,1722204638032,-7570.38815316,0.00011,2]
[333494963,1722204638043,-5270.0,0.00011,2]
[333494964,1722204638055,-515.28705452,0.00011,2]
[333494965,1722204638065,-1134.70787623,0.00011,2]
[333494966,1722204638076,-991.17307876,0.00011,2]
[333494967,1722204638087,-23996.93107085,0.00011,2]
[333494969,1722204638098,-4852.6012,0.00011,2]
[333494971,1722204638109,-10535.96684458,0.00011,2]
[333495000,1722204639624,-10482.67500397,0.00011,2]
[333495001,1722204639634,-13621.93538143,0.00011,2]
[333495002,1722204639656,-1360.34572123,0.00011,2]
[333495003,1722204639668,-503.4787228,0.00011,2]
[333495004,1722204639684,-307.46014093,0.00011,2]
[333495005,1722204639713,-4747.18311746,0.00011,2]
[333495006,1722204639727,-1413.08096614,0.00011,2]
[333495007,1722204639739,-30305.85968867,0.00011,2]
[333495008,1722204639751,-65864.16137191,0.00011,2]
[333495009,1722204639763,-3891.36684221,0.00011,2]
[333495010,1722204639824,-474.8691016,0.00011,2]
[333495011,1722204639836,-322.85018007,0.00011,2]
[333495012,1722204639848,-843.15773648,0.00011,2]
[333495013,1722204639937,-338642.58192207,0.00011,2]
[333495014,1722204639968,-1079.800005,0.00011,2]
[333495015,1722204639979,-680.67,0.00011,2]
[333495016,1722204639996,-254.98689047,0.00011,2]
[333495017,1722204640008,-833.51630068,0.00011,2]
[333495018,1722204640020,-487.73034388,0.00011,2]
[333495019,1722204640034,-347.78074878,0.00011,2]
[333495020,1722204640104,-540.18000005,0.00011,2]
[333495021,1722204640115,-3482.59104684,0.00011,2]
[333495022,1722204640128,-5370.72563764,0.00011,2]
[333495031,1722204642528,-1085.140985,0.00011,2]
[333495033,1722204642540,-276.224985,0.00011,2]
[333495036,1722204642565,-33539.00000004,0.00011,2]
[333495038,1722204642576,-5284.7683104,0.00011,2]
[333495041,1722204642595,-264.40344228,0.00011,2]
[333495043,1722204642606,-341665.19319835,0.00011,2]
[333495046,1722204642618,-67268.84094529,0.00011,2]
[333495048,1722204642628,-711.51228327,0.00011,2]
[333495057,1722204642707,-1224.01061712,0.00011,2]
[333495059,1722204642719,-335.24999999,0.00011,2]
[333495062,1722204642731,-630.18302999,0.00011,2]
[333495064,1722204642743,-613854.00000017,0.00011,2]
[333495066,1722204642754,-297.59077079,0.00011,2]
[333495071,1722204642813,-5714.9806,0.000108,2]
[333495073,1722204642822,-13159.67250769,0.00011,2]
[333495111,1722204645696,-1675.2,0.00011,2]
[333495117,1722204645808,-891.59999964,0.00011,2]
[333495118,1722204645819,-1704.475,0.00011,2]
[333495119,1722204645839,-13859.30902558,0.00011,2]
[333495120,1722204645850,-828.18787916,0.00011,2]
[333495121,1722204645873,-3325.0,0.00011,2]
[333495340,1722205693168,-450.0,8.219e-05,2]
[333495341,1722205738921,-797.48730297,8.219e-05,2]
[333495342,1722205738948,-2.51269703,8.219e-05,2]
[333495343,1722205742434,150.0,6.781e-05,7]
[333495345,1722205768735,-600.0,6.781e-05,2]
[333495346,1722205769019,-361.42333399,6.781e-05,2]
[333495347,1722205769045,-300.0,8.218e-05,2]
[333495348,1722205769070,-20364.99819995,8.219e-05,2]
[333495349,1722205769095,-871.0952208,8.219e-05,2]
[333495350,1722205769122,-102.48324526,8.219e-05,2]
[333495351,1722205779496,-553.0,6.781e-05,2]
[333495352,1722205785230,-553.0,6.781e-05,2]
[333495353,1722205785807,-526.6662692,6.781e-05,2]
[333495354,1722205794979,-535.3337308,6.781e-05,2]
[333495355,1722205798741,-481.21512606,6.781e-05,2]
[333495356,1722205800933,-300.0,6.78e-05,2]
[333495357,1722205804563,-205.75656046,6.781e-05,2]
[333495358,1722205804592,-7570.88133698,6.781e-05,2]
[333495359,1722205804617,-411.44480674,6.781e-05,2]
[333495360,1722205804642,-155.0,6.781e-05,2]
[333495361,1722205804670,-29.54,8.219e-05,2]
[333495365,1722205831799,-282.7207589,8.219e-05,2]
[333495368,1722205831808,-372.4292411,8.219e-05,2]
[333495372,1722205831960,-511.26037968,8.219e-05,2]
[333495373,1722205831970,-250.0,9.899e-05,2]
[333495374,1722205831979,-1250.0,0.0001,2]
[333495375,1722205831989,-480.0,0.00010012,2]
[333495376,1722205831998,-153.7,0.00010021,2]
[333495377,1722205832008,-520.0,0.00010146,2]
[333495378,1722205832017,-236.09754587,0.00010614,2]
[333495379,1722205832027,-999.99,0.00010649,2]
[333495380,1722205832037,-374.21,0.000107,2]
[333495381,1722205832046,-187.07755,0.00010779,2]
[333495382,1722205832056,-169.8136908,0.0001078,2]
[333495383,1722205832065,-2057.4,0.000108,2]
[333495384,1722205832075,-150.0,0.00010879,2]
[333495385,1722205832084,-5880.00998203,0.0001088,2]
[333495386,1722205832096,-1679.06194262,0.0001088,2]
[333495387,1722205832110,-3039.55549383,0.0001088,2]
[333495388,1722205832122,-8363.30669565,0.0001088,2]
[333495389,1722205832139,-300.0,0.0001088,2]
[333495390,1722205832150,-1215.07590594,0.0001088,2]
[333495391,1722205832165,-557.07764247,0.0001088,2]
[333495392,1722205832176,-1056.0,0.0001088,2]
[333495394,1722205837754,-712.43225591,0.0001088,2]
[333495396,1722205837766,-1605.98,0.0001088,2]
[333495398,1722205837908,-2162.87541958,0.0001088,2]
[333495399,1722205837923,-4810.841751,0.0001088,2]
[333495400,1722205837936,-2871.6950449,0.0001088,2]
[333495401,1722205838015,-5255.84429154,0.0001088,2]
[333495402,1722205838024,-892.0,0.0001089,2]
[333495403,1722205838033,-207.92410251,0.000109,2]
[333495404,1722205838042,-162.30891768,0.000109,2]
[333495405,1722205838052,-15784.92823097,0.000109,2]
[333495406,1722205838061,-633.46582986,0.000109,2]
[333495407,1722205838070,-14824.980663,0.00010998,2]
[333495408,1722205838079,-210.50481927,0.00010999,2]
[333495409,1722205838089,-5944.2585102,0.00010999,2]
[333495410,1722205838098,-1123.42877866,0.00010999,3]
[333495411,1722205838107,-1123.42877866,0.00010999,3]
[333495413,1722205838118,-500.0,0.00010999,2]
[333495415,1722205838128,-530.54402873,0.00010999,2]
[333495417,1722205838141,-500.0,0.00010999,2]
[333495419,1722205838150,-500.0,0.00010999,2]
[333495421,1722205838160,-222.48426884,0.00010999,2]
[333495423,1722205838169,-634.78,0.00010999,2]
[333495424,1722205838179,-447.87222446,0.00010999,2]
[333495426,1722205838188,-500.0,0.00010999,2]
[333495428,1722205838197,-410.35797203,0.00010999,2]
[333495429,1722205838206,-342.79095665,0.00010999,2]
[333495431,1722205838216,-500.0,0.00010999,2]
[333495432,1722205838225,-512.2636514,0.00010999,2]
[333495433,1722205838234,-506.02153401,0.00010999,2]
[333495434,1722205838244,-510.92498197,0.00010999,2]
[333495435,1722205838254,-346.11572256,0.00010999,2]
[333495436,1722205838263,-500.0,0.00010999,2]
[333495437,1722205838273,-504.29005169,0.00010999,2]
[333495438,1722205838282,-1000.0,0.00010999,2]
[333495439,1722205838292,-2000.0,0.00010999,2]
[333495440,1722205838301,-150.0,0.00010999,2]
[333495441,1722205838310,-10996.76568531,0.00011,2]
[333495442,1722205838322,-7041.62958124,0.00011,2]
[333495443,1722205838333,-650.88432135,0.00011,2]
[333495444,1722205838343,-41567.92804241,0.00011,2]
[333495445,1722205838354,-163833.02147566,0.00011,2]
[333495446,1722205838364,-65434.6570488,0.00011,2]
[333495447,1722205838375,-918.24688899,0.00011,2]
[333495448,1722205838387,-11122.61009273,0.00011,2]
[333495449,1722205838399,-2713.35802244,0.00011,2]
[333495450,1722205838415,-709.08266212,0.00011,2]
[333495452,1722205839994,-8377.97250013,0.00011,2]
[333495453,1722205840006,-1311.31,0.00011,2]
[333495454,1722205840371,-656.66,0.00011,2]
[333495455,1722205840466,-462.7030002,0.00011,2]
[333495457,1722205842835,-1217.50675063,0.00011,2]
[333495458,1722205843439,-436.78998372,0.00011,2]
[333495459,1722205843470,-32621.08850002,0.00011,2]
[333495460,1722205843596,-1419711.5393821,0.00011,2]
[333495461,1722205843611,-1433.76304378,0.00011,2]
[333495462,1722205843831,-1416.83983997,0.00011,2]
[333495484,1722205845927,-455.56,8.514e-05,2]
[333495485,1722205845939,-559.3098506,9.962e-05,2]
[333495486,1722205846039,-1073.3564186,9.962e-05,2]
[333495487,1722205846051,-633.1435814,0.00011,2]
[333495488,1722205846140,-3285.27612,0.00011,2]
[333495489,1722205846161,-888.15322301,0.00011,2]
[333495490,1722205846199,-1469.69563111,0.00011,2]
[333495491,1722205846213,-1578.49314389,0.00011,2]
[333495492,1722205846226,-614.90940519,0.00011,2]
[333495493,1722205846296,-302.0,0.00011,2]
[333495536,1722207032298,-482.63,8.219e-05,2]
[333495537,1722207032308,-859.49,9.8e-05,2]
[333495538,1722207032319,-6797.38,9.812e-05,2]
[333495539,1722207032329,-300.0,9.9e-05,3]
[333495540,1722207032338,-1000.0,9.934e-05,2]
[333495541,1722207032348,-300.0,9.999e-05,2]
[333495542,1722207032358,-600.0,0.0001,3]
[333495543,1722207032368,-13155.77,0.0001,2]
[333495544,1722207032377,-29999.99,0.0001,2]
[333495545,1722207032386,-19999.99,0.0001,2]
[333495546,1722207032396,-900.0,0.000101,3]
[333495547,1722207032406,-1200.0,0.000102,3]
[333495548,1722207032416,-4256.06,0.000102,2]
[333495549,1722207032426,-1500.0,0.000103,3]
[333495550,1722207032435,-11495.0,0.000103,5]
[333495551,1722207032445,-300.0,0.000104,3]
[333495552,1722207032455,-482.63,0.00010468,2]
[333495553,1722207032464,-300.0,0.000105,3]
[333495554,1722207032473,-300.0,0.000106,3]
[333495555,1722207032483,-5232.4873,0.000107,2]
[333495556,1722207032492,-300.0,0.000107,3]
[333495557,1722207032501,-22233.76577866,0.000107,2]
[333495558,1722207032512,-132520.95401973,0.000108,2]
[333495559,1722207033961,-1800.0,0.000108,2]
[333495564,1722207039705,-467.1991,0.000107,2]
[333495565,1722207039716,-14063.95487264,0.000108,2]
[333495566,1722207039787,-9324.97,0.000108,2]
[333495567,1722207039800,-2500.0,0.000108,2]
[333495568,1722207039814,-66873.36826942,0.000108,2]
[333495569,1722207039825,-17550.4999998,0.000108,2]
[333495570,1722207039836,-1015.57365664,0.000108,2]
[333495571,1722207039869,-678.46643896,0.000108,2]
[333495572,1722207039881,-680.9102,0.000108,2]
[333495573,1722207039895,-2162.87719671,0.000108,2]
[333495574,1722207039909,-4810.841751,0.000108,2]
[333495575,1722207039923,-2871.6950449,0.000108,2]
[333495579,1722207039935,-3241.6375,0.000108,2]
[333495584,1722207040113,-426.803,0.000108,2]
[333495585,1722207040182,-2454.94273917,0.000108,2]
[333495586,1722207040194,-1352.74328221,0.000108,2]
[333495587,1722207040205,-1180.22303273,0.000108,2]
[333495588,1722207040351,-933.80555665,0.000108,2]
[333495589,1722207040363,-460.28830002,0.000108,2]
[333495590,1722207040375,-40598.05593484,0.000108,2]
[333495591,1722207040386,-73274.69871855,0.000108,2]
[333495592,1722207040398,-9353.01326921,0.000108,2]
[333495593,1722207040409,-2010.0,0.000108,2]
[333495594,1722207040421,-466.51281727,0.000108,2]
[333495595,1722207040432,-1594.4435325,0.000108,2]
[333495596,1722207040464,-24854.21966704,0.000108,2]
[333495606,1722207043400,-1919.52883686,0.000108,2]
[333495607,1722207043414,-460.35272284,0.000108,2]
[333495619,1722207046224,-5570.45453968,0.000103,5]
[333495696,1722207248698,250.0,0.00021,120]
[333495698,1722207411959,5000.0,0.00021,120]
[333495699,1722207451980,3000.0,0.00021,120]
[333495700,1722207481513,3000.0,0.00021,120]
[333495702,1722207758029,-464.37,8.219e-05,2]
[333495703,1722207758058,-300.0,9.937e-05,2]
[333495704,1722207758083,-9085.63,9.938e-05,2]
[333495727,1722208163393,-441.15,8.219e-05,2]
[333495728,1722208163418,-250.0,9.853e-05,2]
[333495729,1722208163444,-108.85,9.888e-05,2]
[333495732,1722208232333,-41.15,9.888e-05,2]
[333495733,1722208232345,-1369.92317728,9.888e-05,2]
[333495734,1722208232354,-750.0,9.888e-05,2]
[333495735,1722208232363,-961.42333399,9.888e-05,2]
[333495736,1722208232374,-797.48730297,9.888e-05,2]
[333495737,1722208232383,-490.16959632,9.912e-05,2]
[333495738,1722208232504,-743.72040368,9.912e-05,2]